bitfinex-derivatives/quotes_SOLF0:USTF0_20250309
["timestamp","ask_amount","ask_price","bid_price","bid_amount"]
[1741556116551,7.8354,127.64,127.58,51.28625633]
[1741556117051,7.8368,127.62,127.58,19.84625633]
[1741556117344,0.0544334,127.62,127.6,0.05367051]
[1741556118140,7.837,127.61,127.6,0.05367051]
[1741556120249,7.8392,127.58,127.54,20.85413529]
[1741556120550,192.0,127.61,127.56,19.84625633]
[1741556120744,199.837,127.61,127.56,19.84625633]
[1741556121152,199.837,127.61,127.56,27.68605633]
[1741556121355,0.05653317,127.6,127.57,0.05631848]
[1741556123456,7.89463317,127.6,127.57,0.05631848]
[1741556123649,0.05653317,127.6,127.57,0.05631848]
[1741556124454,7.8388,127.58,127.57,0.05631848]
[1741556129054,2.56133317,127.6,127.57,0.05631848]
[1741556129261,7.8382,127.59,127.57,0.05631848]
[1741556129463,0.05653317,127.6,127.58,19.84625633]
[1741556129760,0.05653317,127.6,127.59,7.8382]
[1741556130153,7.8355,127.64,127.6,7.8376]
[1741556130550,31.46,127.66,127.6,19.84625633]
[1741556130756,194.6441,127.69,127.62,27.68225633]
[1741556131158,192.0,127.69,127.62,19.84625633]
[1741556131357,0.05966978,127.67,127.64,19.89643633]
[1741556131554,0.05966978,127.67,127.66,19.84625633]
[1741556131752,10.52854852,127.7,127.66,51.30625633]
[1741556132063,10.3314,127.74,127.68,19.84625633]
[1741556132257,10.3314,127.74,127.67,31.78095186]
[1741556132455,44.57329409,127.77,127.69,31.78095186]
[1741556132760,48.35646136,127.76,127.73,31.78095186]
[1741556132957,42.11419409,127.77,127.75,31.78095186]
[1741556133160,84.22838819,127.78,127.75,31.78095186]
[1741556133360,84.22838819,127.78,127.75,34.38875186]
[1741556133763,80.23248819,127.78,127.75,34.38875186]
[1741556134162,68.29559965,127.78,127.75,34.43948529]
[1741556134355,60.17539965,127.78,127.75,34.43948529]
[1741556134559,60.17539965,127.78,127.75,42.26728529]
[1741556134770,0.05051146,127.78,127.75,31.83168529]
[1741556135967,194.5023,127.84,127.75,31.83168529]
[1741556135968,202.3253,127.84,127.75,31.83168529]
[1741556136264,202.3253,127.84,127.75,31.78095186]
[1741556136762,7.8256,127.8,127.75,31.78095186]
[1741556136958,194.5023,127.84,127.75,31.78095186]
[1741556137161,0.05733417,127.79,127.76,0.05711796]
[1741556137361,0.05733417,127.79,127.74,31.44]
[1741556137660,0.05733417,127.79,127.76,0.05147737]
[1741556138862,0.05733417,127.79,127.76,31.83242923]
[1741556140064,7.88343417,127.79,127.76,0.05147737]
[1741556140560,0.05733417,127.79,127.76,0.05147737]
[1741556140766,7.8266,127.78,127.76,0.05147737]
[1741556141367,7.88333417,127.79,127.76,0.05147737]
[1741556141666,0.05733417,127.79,127.76,0.05147737]
[1741556142066,7.827,127.78,127.76,0.05147737]
[1741556142264,0.05733417,127.79,127.76,0.05147737]
[1741556142462,7.8271,127.77,127.76,0.05147737]
[1741556142863,7.8271,127.77,127.72,31.42]
[1741556142864,0.05733417,127.79,127.72,31.42]
[1741556143064,194.4048,127.8,127.7,31.42]
[1741556144163,0.05515388,127.76,127.74,0.05263077]
[1741556144569,7.8284,127.75,127.74,0.05263077]
[1741556144968,0.05515388,127.76,127.69,31.42]
[1741556145159,2.4711,127.75,127.69,31.42]
[1741556145360,2.4711,127.75,127.68,31.78095186]
[1741556145559,2.4711,127.75,127.66,39.2538]
[1741556145560,7.8313,127.71,127.66,39.2538]
[1741556145969,7.8313,127.71,127.66,31.42]
[1741556146165,7.8881231,127.7,127.67,0.05145513]
[1741556146364,7.8881231,127.7,127.66,39.2537]
[1741556146559,7.8881231,127.7,127.67,0.05288449]
[1741556148059,0.0566231,127.7,127.67,0.05288449]
[1741556151668,2.4711,127.75,127.68,31.78095186]
[1741556152063,192.0,127.78,127.72,7.8302]
[1741556152264,192.0,127.78,127.72,31.4]
[1741556152467,192.0,127.78,127.74,31.78095186]
[1741556152765,0.0555918,127.77,127.75,0.05828294]
[1741556152966,0.0555918,127.77,127.75,7.88628294]
[1741556154167,0.0555918,127.77,127.76,7.8278]
[1741556154370,0.0555918,127.77,127.76,39.2278]
[1741556154569,10.4191,127.83,127.77,7.8269]
[1741556154765,2.5954,127.83,127.77,31.78095186]
[1741556155168,197.1672,127.85,127.8,7.8253]
[1741556155374,197.1672,127.85,127.77,31.78095186]
[1741556155774,0.05086842,127.82,127.8,0.05007235]
[1741556155975,0.05086842,127.82,127.8,31.45007235]
[1741556156577,0.05086842,127.82,127.8,0.05007235]
[1741556160082,7.87536842,127.82,127.8,0.05007235]
[1741556160381,0.05086842,127.82,127.8,0.05007235]
[1741556160982,192.0,127.81,127.71,31.38]
[1741556161185,223.38,127.8,127.71,31.38]
[1741556161380,7.8287,127.75,127.71,31.38]
[1741556161577,223.38,127.8,127.71,31.38]
[1741556161779,192.0,127.79,127.69,31.38]
[1741556161975,7.8293,127.74,127.73,0.05744608]
[1741556162179,31.43846716,127.76,127.68,31.78095186]
[1741556162379,31.38,127.76,127.68,31.78095186]
[1741556162581,7.8306,127.72,127.68,31.78095186]
[1741556162779,31.38,127.76,127.68,31.78095186]
[1741556163182,31.38,127.76,127.66,31.38]
[1741556163183,192.0,127.75,127.66,31.38]
[1741556163380,0.05961207,127.73,127.71,0.04990946]
[1741556163779,7.8302,127.72,127.71,0.04990946]
[1741556168285,7.8327,127.68,127.65,31.78095186]
[1741556168488,7.8327,127.68,127.65,63.18095186]
[1741556168885,2.4025,127.74,127.65,63.18095186]
[1741556169191,7.8349,127.65,127.62,31.78095186]
[1741556169387,31.4,127.7,127.61,31.4]
[1741556169580,5.1527,127.69,127.61,31.4]
[1741556169783,0.05948627,127.67,127.64,0.05536222]
[1741556171188,0.05948627,127.67,127.64,7.89026222]
[1741556171387,0.05948627,127.67,127.64,0.05536222]
[1741556172489,0.05948627,127.67,127.65,7.8344]
[1741556174791,0.05948627,127.67,127.64,7.89016222]
[1741556175889,0.05948627,127.67,127.64,0.05536222]
[1741556176091,7.89288627,127.67,127.64,0.05536222]
[1741556176593,0.05948627,127.67,127.64,7.89046222]
[1741556176792,0.05948627,127.67,127.64,0.05536222]
[1741556177296,0.05948627,127.67,127.64,7.89026222]
[1741556177798,0.05948627,127.67,127.64,0.05536222]
[1741556178188,7.8344,127.66,127.64,0.05536222]
[1741556179798,0.05948627,127.67,127.64,0.05536222]
[1741556180698,7.8341,127.66,127.64,0.05536222]
[1741556183502,7.8345,127.65,127.64,0.05536222]
[1741556183704,7.8345,127.65,127.51,34.13027829]
[1741556183705,7.8345,127.65,127.6,31.4]
[1741556184104,7.8345,127.65,127.61,7.8366]
[1741556184499,31.78095186,127.68,127.56,31.78095186]
[1741556184705,31.78095186,127.68,127.6,7.8376]
[1741556185004,0.05082386,127.63,127.61,0.05066247]
[1741556185199,7.8362,127.63,127.61,0.05066247]
[1741556185402,7.88964664,127.63,127.61,0.05066247]
[1741556186004,0.05344664,127.63,127.61,0.05066247]
[1741556186702,7.88924664,127.63,127.61,0.05066247]
[1741556187301,0.05344664,127.63,127.61,0.05066247]
[1741556188407,0.05344664,127.63,127.61,31.45066247]
[1741556188906,0.05344664,127.63,127.62,7.8363]
[1741556198711,0.05344664,127.63,127.61,0.05066247]
[1741556199710,7.88944664,127.63,127.61,0.05066247]
[1741556200409,7.8363,127.62,127.61,0.05066247]
[1741556201010,7.88944664,127.63,127.61,0.05066247]
[1741556201210,0.05344664,127.63,127.61,0.05066247]
[1741556201613,0.05344664,127.63,127.57,31.38]
[1741556202511,7.8374,127.61,127.57,31.38]
[1741556202811,7.8374,127.61,127.58,0.05990593]
[1741556203012,0.05205144,127.6,127.58,0.05990593]
[1741556204007,7.88965144,127.6,127.58,0.05990593]
[1741556208617,0.05205144,127.6,127.58,0.05990593]
[1741556209112,5.144e-05,127.6,127.59,39.64978165]
[1741556209512,5.144e-05,127.6,127.59,43.56978165]
[1741556209917,5.144e-05,127.6,127.59,39.64978165]
[1741556214119,5.144e-05,127.6,127.59,7.8382]
[1741556215614,5.144e-05,127.6,127.59,39.1982]
[1741556217818,5.144e-05,127.6,127.58,0.05990593]
[1741556219625,7.83795144,127.6,127.58,0.05990593]
[1741556220419,7.8382,127.59,127.58,0.05990593]
[1741556220820,5.144e-05,127.6,127.58,0.05990593]
[1741556223122,5.144e-05,127.6,127.59,7.8382]
[1741556223325,5.144e-05,127.6,127.58,0.05990593]
[1741556223723,5.144e-05,127.6,127.58,7.89840593]
[1741556223925,5.144e-05,127.6,127.58,0.05990593]
[1741556225320,5.144e-05,127.6,127.59,7.8382]
[1741556225519,5.144e-05,127.6,127.58,0.05990593]
[1741556225719,5.144e-05,127.6,127.58,7.89820593]
[1741556226319,5.144e-05,127.6,127.58,0.05990593]
[1741556228826,5.144e-05,127.6,127.58,7.89870593]
[1741556229727,5.144e-05,127.6,127.59,27.72789618]
[1741556233624,2.6482,127.66,127.59,19.88969618]
[1741556234723,5.1527,127.69,127.61,19.88969618]
[1741556234929,0.05244236,127.64,127.63,19.88969618]
[1741556235127,5.1527,127.69,127.63,19.88969618]
[1741556235929,5.1527,127.69,127.66,7.8334]
[1741556236435,5.20506256,127.69,127.66,7.89139086]
[1741556238130,5.20506256,127.69,127.66,0.05799086]
[1741556238331,7.833,127.68,127.66,0.05799086]
[1741556240124,7.8333,127.67,127.66,0.05799086]
[1741556240326,25.09475874,127.69,127.6,19.88969618]
[1741556240535,25.04239618,127.69,127.61,31.34]
[1741556241238,7.8357,127.64,127.61,31.34]
[1741556241736,7.8357,127.64,127.61,31.39984379]
[1741556242131,0.05417106,127.66,127.61,0.05984379]
[1741556242328,7.8363,127.63,127.61,0.05984379]
[1741556242735,7.89506618,127.63,127.61,0.05984379]
[1741556243536,0.05876618,127.63,127.61,0.05984379]
[1741556247137,0.05876618,127.63,127.61,7.89674379]
[1741556247944,0.05876618,127.63,127.62,39.1563]
[1741556248841,0.05876618,127.63,127.62,31.32]
[1741556250948,0.05876618,127.63,127.61,0.05984379]
[1741556252246,7.89456618,127.63,127.61,0.05984379]
[1741556252647,0.05876618,127.63,127.61,0.05984379]
[1741556252848,7.8363,127.62,127.61,0.05984379]
[1741556253050,5.0909,127.62,127.55,19.88969618]
[1741556253245,5.0909,127.62,127.56,31.32]
[1741556253446,7.8383,127.59,127.56,39.1599]
[1741556253846,7.8383,127.59,127.56,31.32]
[1741556254044,7.8383,127.59,127.56,31.37868304]
[1741556254242,0.05825369,127.59,127.56,31.37868304]
[1741556254650,0.05825369,127.59,127.56,39.21848304]
[1741556255254,0.05825369,127.59,127.56,31.37868304]
[1741556255650,0.05825369,127.59,127.56,0.05868304]
[1741556255851,7.8392,127.58,127.56,0.05868304]
[1741556256252,0.05825369,127.59,127.56,0.05868304]
[1741556257356,0.05825369,127.59,127.56,31.37868304]
[1741556258153,0.05825369,127.59,127.57,7.8391]
[1741556258650,0.05825369,127.59,127.56,31.37868304]
[1741556258859,0.05825369,127.59,127.58,7.8388]
[1741556259556,0.05825369,127.59,127.57,27.72879618]
[1741556259758,0.05825369,127.59,127.56,31.37868304]
[1741556259953,0.05825369,127.59,127.56,0.05868304]
[1741556260260,7.8392,127.58,127.56,0.05868304]
[1741556260566,0.05825369,127.59,127.56,0.05868304]
[1741556265258,19.94794987,127.59,127.56,0.05868304]
[1741556265465,19.94794987,127.59,127.52,31.32]
[1741556265854,19.88969618,127.57,127.49,1.36425113]
[1741556266061,25.05089618,127.56,127.48,31.32]
[1741556266664,7.89982948,127.53,127.51,0.05123635]
[1741556266866,0.05752948,127.53,127.51,0.05123635]
[1741556267263,7.89992948,127.53,127.51,0.05123635]
[1741556268069,0.05752948,127.53,127.51,0.05123635]
[1741556268460,0.05752948,127.53,127.51,19.94093253]
[1741556268661,192.0,127.58,127.51,19.94093253]
[1741556268866,12.9144,127.6,127.53,19.88969618]
[1741556269063,12.9144,127.6,127.54,39.1608]
[1741556269870,0.04993652,127.58,127.56,0.05563609]
[1741556271261,0.04993652,127.58,127.56,7.89553609]
[1741556273272,0.04993652,127.58,127.56,0.05563609]
[1741556281976,7.88883652,127.58,127.56,0.05563609]
[1741556282176,0.04993652,127.58,127.52,31.3]
[1741556282782,0.04993652,127.58,127.52,59.03189618]
[1741556283078,0.04993652,127.58,127.52,31.3]
[1741556283379,7.841,127.55,127.54,0.05143087]
[1741556285573,2.55513652,127.58,127.54,0.05143087]
[1741556285774,0.04993652,127.58,127.54,19.94112705]
[1741556286171,0.04993652,127.58,127.54,27.78212705]
[1741556286876,0.04993652,127.58,127.54,19.94112705]
[1741556286877,7.88903652,127.58,127.54,19.94112705]
[1741556287177,0.04993652,127.58,127.54,19.94112705]
[1741556287372,0.04993652,127.58,127.54,27.78202705]
[1741556287676,0.04993652,127.58,127.54,19.94112705]
[1741556287981,0.04993652,127.58,127.55,7.8406]
[1741556288177,0.04993652,127.58,127.56,31.3]
[1741556289782,0.04993652,127.58,127.56,39.1398]
[1741556290082,0.04993652,127.58,127.56,31.3]
[1741556292481,0.04993652,127.58,127.56,39.1399]
[1741556294285,211.88969618,127.65,127.56,51.18969618]
[1741556294481,4.9751,127.64,127.56,51.18969618]
[1741556294687,7.8363,127.63,127.58,7.8384]
[1741556294985,7.8363,127.63,127.56,51.18969618]
[1741556295184,7.8363,127.63,127.58,7.8385]
[1741556295389,0.05146586,127.61,127.58,0.05290776]
[1741556295885,0.05146586,127.61,127.58,7.89130776]
[1741556297683,0.05146586,127.61,127.58,0.05290776]
[1741556297985,0.05146586,127.61,127.59,7.8381]
[1741556299093,0.05146586,127.61,127.58,7.89140776]
[1741556299880,0.05146586,127.61,127.58,0.05290776]
[1741556300286,0.05146586,127.61,127.58,12.78797241]
[1741556300581,0.05146586,127.61,127.58,20.62667241]
[1741556300782,7.88856586,127.61,127.58,12.78797241]
[1741556300989,0.05146586,127.61,127.58,0.05290776]
[1741556301879,12.78653051,127.61,127.58,0.05290776]
[1741556302282,0.05146586,127.61,127.58,0.05290776]
[1741556302482,7.8381,127.6,127.58,0.05290776]
[1741556302680,0.05146586,127.61,127.58,0.05290776]
[1741556303083,7.8382,127.59,127.58,0.05290776]
[1741556304486,7.8378,127.6,127.58,0.05290776]
[1741556304687,0.05146586,127.61,127.58,0.05290776]
[1741556305688,0.05146586,127.61,127.6,7.8376]
[1741556305988,0.05146586,127.61,127.59,31.28]
[1741556306188,0.05146586,127.61,127.59,39.1179]
[1741556307190,0.05146586,127.61,127.59,31.28]
[1741556309295,7.88846586,127.61,127.59,31.28]
[1741556312089,0.05146586,127.61,127.59,31.28]
[1741556312289,0.05146586,127.61,127.59,51.18572995]
[1741556312491,0.05146586,127.61,127.59,31.28]
[1741556314296,7.88856586,127.61,127.59,31.28]
[1741556314486,0.05146586,127.61,127.59,31.28]
[1741556316287,0.05146586,127.61,127.59,39.1178]
[1741556316794,0.05146586,127.61,127.59,31.28]
[1741556317499,0.05146586,127.61,127.59,51.18572995]
[1741556319397,0.05146586,127.61,127.6,7.8376]
[1741556321397,0.05146586,127.61,127.59,31.28]
[1741556322299,7.8376,127.6,127.59,12.73251736]
[1741556322598,7.8376,127.6,127.58,0.05290776]
[1741556323097,7.8382,127.59,127.58,0.05290776]
[1741556323992,0.05146586,127.61,127.58,0.05290776]
[1741556324597,7.88896586,127.61,127.58,0.05290776]
[1741556325996,0.05146586,127.61,127.59,12.73251736]
[1741556326798,0.05146586,127.61,127.59,51.83051736]
[1741556326995,0.05146586,127.61,127.59,31.26]
[1741556329098,0.05146586,127.61,127.59,39.0981]
[1741556329290,0.05146586,127.61,127.59,31.26]
[1741556331595,0.05146586,127.61,127.6,7.8376]
[1741556331801,0.05146586,127.61,127.6,20.57011736]
[1741556333097,2.609,127.67,127.6,12.73251736]
[1741556333302,2.609,127.67,127.65,12.73251736]
[1741556334202,2.6658624,127.67,127.65,12.78468614]
[1741556335792,10.4992624,127.67,127.65,12.78468614]
[1741556337205,7.8339,127.66,127.65,0.05216878]
[1741556340804,12.73251736,127.66,127.6,12.73251736]
[1741556341005,15.26951736,127.66,127.6,43.97251736]
[1741556341201,15.26951736,127.66,127.6,12.73251736]
[1741556341911,12.79255286,127.64,127.62,0.05543815]
[1741556343012,7.8357,127.63,127.62,0.05543815]
[1741556343208,0.0600355,127.64,127.62,0.05543815]
[1741556343408,0.0600355,127.64,127.63,12.73251736]
[1741556344411,0.0600355,127.64,127.63,20.56821736]
[1741556344813,0.0600355,127.64,127.63,12.73251736]
[1741556346212,0.0600355,127.64,127.62,51.17585199]
[1741556346405,0.0600355,127.64,127.62,59.01175199]
[1741556347508,0.0600355,127.64,127.62,51.17585199]
[1741556347918,0.0600355,127.64,127.62,31.29543815]
[1741556348115,7.8951355,127.64,127.62,31.29543815]
[1741556348616,0.0600355,127.64,127.62,31.29543815]
[1741556353116,0.0600355,127.64,127.62,39.13173815]
[1741556353422,0.0600355,127.64,127.62,59.01215199]
[1741556355723,0.0600355,127.64,127.63,7.8357]
[1741556364224,2.609,127.67,127.63,7.8357]
[1741556365028,10.4423,127.67,127.63,7.8357]
[1741556365424,0.05980808,127.66,127.63,7.8357]
[1741556366229,0.05980808,127.66,127.65,12.72137123]
[1741556373026,0.05980808,127.66,127.63,7.8357]
[1741556373231,0.05980808,127.66,127.65,12.72137123]
[1741556381040,0.05980808,127.66,127.65,20.55587123]
[1741556381251,5.1289,127.7,127.65,12.72137123]
[1741556381545,5.1289,127.7,127.69,12.72137123]
[1741556384948,12.9603,127.7,127.69,12.72137123]
[1741556385449,10.2744,127.7,127.69,12.72137123]
[1741556387154,7.832,127.69,127.68,0.05532301]
[1741556388953,2.443,127.7,127.68,0.05532301]
[1741556389348,7.832,127.69,127.68,0.05532301]
[1741556390444,10.2749,127.7,127.68,0.05532301]
[1741556391555,7.8319,127.7,127.69,12.72137123]
[1741556392051,7.8319,127.7,127.68,0.05532301]
[1741556392052,7.8319,127.7,127.68,12.77669424]
[1741556393457,7.88458367,127.71,127.68,12.77669424]
[1741556395260,0.05348367,127.71,127.68,12.77669424]
[1741556395960,7.88458367,127.71,127.68,12.77669424]
[1741556400166,0.05348367,127.71,127.68,12.77669424]
[1741556400465,0.05348367,127.71,127.68,0.05532301]
[1741556400660,0.05348367,127.71,127.68,12.77669424]
[1741556400861,0.05348367,127.71,127.7,12.72137123]
[1741556401065,2.4899,127.75,127.7,43.90137123]
[1741556401264,2.4741,127.76,127.74,12.72137123]
[1741556401461,2.4741,127.76,127.74,43.90137123]
[1741556402163,2.53311247,127.76,127.74,43.95685825]
[1741556406664,0.05901247,127.76,127.75,7.8284]
[1741556407069,7.8253,127.8,127.74,43.95685825]
[1741556407363,7.8253,127.8,127.79,12.72137123]
[1741556408469,10.40094531,127.81,127.79,12.72137123]
[1741556410369,7.8253,127.8,127.79,12.72137123]
[1741556410560,2.57594531,127.81,127.79,12.72137123]
[1741556411174,10.40084531,127.81,127.79,12.72137123]
[1741556412665,0.04964531,127.81,127.79,12.72137123]
[1741556412864,7.8227,127.85,127.79,12.72137123]
[1741556413066,7.8227,127.85,127.83,12.72137123]
[1741556413373,199.748,127.89,127.83,12.72137123]
[1741556413568,199.748,127.89,127.85,12.72137123]
[1741556413874,7.8214,127.87,127.85,12.72137123]
[1741556414174,7.8214,127.87,127.86,0.05830358]
[1741556421171,7.8216,127.86,127.85,12.72137123]
[1741556421882,0.05594657,127.88,127.85,12.72137123]
[1741556422088,0.05594657,127.88,127.87,12.72137123]
[1741556422382,2.5962,127.92,127.87,12.72137123]
[1741556422584,2.5962,127.92,127.91,12.72137123]
[1741556425378,0.05588869,127.93,127.91,12.72137123]
[1741556425582,0.05588869,127.93,127.92,12.72137123]
[1741556425988,0.05588869,127.93,127.92,20.53937123]
[1741556426977,2.5539,127.96,127.92,12.72137123]
[1741556427183,7.8147,127.98,127.95,12.72137123]
[1741556428284,7.86458478,127.98,127.95,12.77558532]
[1741556430587,0.04988478,127.98,127.97,12.72137123]
[1741556435090,7.86418478,127.98,127.97,12.72137123]
[1741556438996,0.04988478,127.98,127.97,12.72137123]
[1741556439193,7.8122,128.02,127.97,20.53627123]
[1741556439399,5.0,128.04,128.01,12.72137123]
[1741556439692,7.8115,128.03,128.01,12.72137123]
[1741556440393,0.04267672,128.03,128.01,12.78046159]
[1741556440692,7.8119,128.02,128.01,0.05909036]
[1741556441700,0.04267672,128.03,128.01,12.78046159]
[1741556442101,0.04267672,128.03,128.02,31.06]
[1741556446399,2.5199,128.07,128.02,31.06]
[1741556446603,2.5199,128.07,128.06,12.72137123]
[1741556447200,192.0,128.12,128.06,12.72137123]
[1741556447201,192.0,128.12,128.06,43.78137123]
[1741556447398,197.2279,128.12,128.08,12.72137123]
[1741556447603,197.2279,128.12,128.08,12.77485598]
[1741556448202,7.8073,128.1,128.08,12.77485598]
[1741556448396,197.2279,128.12,128.08,12.77485598]
[1741556448797,7.8068,128.11,128.08,12.77485598]
[1741556450002,197.2279,128.12,128.08,12.77485598]
[1741556450203,7.8071,128.1,128.08,12.77485598]
[1741556452204,197.2279,128.12,128.08,12.77485598]
[1741556452403,7.8076,128.09,128.08,12.77485598]
[1741556453710,197.2279,128.12,128.06,12.72137123]
[1741556453910,7.8088,128.07,128.06,12.72137123]
[1741556457211,0.05348475,128.08,128.06,12.72137123]
[1741556457405,7.86208475,128.08,128.06,12.72137123]
[1741556458310,7.8088,128.07,128.06,12.72137123]
[1741556458809,0.05348475,128.08,128.06,12.72137123]
[1741556459001,7.86208475,128.08,128.06,12.72137123]
[1741556459202,0.05348475,128.08,128.06,12.72137123]
[1741556461116,0.05348475,128.08,128.05,0.05516954]
[1741556461309,0.05348475,128.08,128.06,12.72137123]
[1741556461710,7.86198475,128.08,128.06,12.72137123]
[1741556463516,0.05348475,128.08,128.06,12.72137123]
[1741556463912,7.86208475,128.08,128.06,12.72137123]
[1741556465515,0.05348475,128.08,128.05,7.86516954]
[1741556465706,7.8089,128.07,128.05,12.77654077]
[1741556466217,7.86198475,128.08,128.05,20.58644077]
[1741556466417,7.86198475,128.08,128.07,12.72137123]
[1741556466616,0.05348475,128.08,128.05,0.05516954]
[1741556466818,7.8088,128.07,128.05,0.05516954]
[1741556467313,7.8088,128.07,128.06,12.72137123]
[1741556469219,10.4376,128.07,128.06,12.72137123]
[1741556470015,7.8088,128.07,128.06,12.72137123]
[1741556470620,7.86168475,128.08,128.06,12.72137123]
[1741556470816,0.05348475,128.08,128.06,12.72137123]
[1741556471018,194.5461,128.12,128.07,31.0]
[1741556471216,2.6288,128.15,128.11,12.72137123]
[1741556471416,2.6288,128.15,128.13,12.72137123]
[1741556471622,2.6288,128.15,128.07,31.0]
[1741556471813,10.4328,128.15,128.12,12.72137123]
[1741556472019,2.6288,128.15,128.12,12.72137123]
[1741556472219,2.6288,128.15,128.12,12.77478407]
[1741556473613,194.4719,128.16,128.12,0.05341284]
[1741556473820,12.72137123,128.14,128.06,12.72137123]
[1741556474023,12.72137123,128.11,128.06,12.72137123]
[1741556474219,7.8077,128.09,128.05,19.7485158]
[1741556474419,223.0,128.12,128.05,19.7485158]
[1741556474725,7.8073,128.1,128.07,19.7485158]
[1741556474914,7.86071284,128.1,128.07,19.80254538]
[1741556475117,0.05341284,128.1,128.07,19.80254538]
[1741556475526,0.05341284,128.1,128.09,19.7485158]
[1741556476022,192.0,128.16,128.09,50.7485158]
[1741556476228,192.0,128.16,128.12,19.7485158]
[1741556477126,192.0,128.16,128.13,0.05595097]
[1741556477321,7.8035,128.16,128.13,0.05595097]
[1741556477521,5.1724,128.18,128.13,0.05595097]
[1741556477732,7.8031,128.17,128.13,0.05595097]
[1741556477921,5.1724,128.18,128.13,0.05595097]
[1741556478327,7.8041,128.15,128.13,0.05595097]
[1741556478531,5.1724,128.18,128.13,0.05595097]
[1741556478730,19.7485158,128.17,128.08,19.7485158]
[1741556478927,222.98,128.16,128.06,19.7485158]
[1741556479633,7.8073,128.1,128.06,19.7485158]
[1741556479926,7.8073,128.1,128.06,50.7285158]
[1741556480131,0.05543426,128.09,128.07,0.05857889]
[1741556480430,0.05543426,128.09,128.04,50.7285158]
[1741556480630,192.05543426,128.09,128.03,42.72111317]
[1741556480927,7.8106,128.04,128.03,18.40431317]
[1741556481226,7.8106,128.04,128.03,5.255e-05]
[1741556481929,7.8112,128.03,128.02,0.05738451]
[1741556482119,0.05843943,128.05,128.02,0.05738451]
[1741556482318,0.05843943,128.05,128.03,19.7485158]
[1741556483132,0.05843943,128.05,128.04,7.8106]
[1741556483929,0.05843943,128.05,128.03,27.5596158]
[1741556485334,0.05843943,128.05,128.03,19.7485158]
[1741556485829,0.05843943,128.05,128.02,0.05738451]
[1741556486933,7.8112,128.03,128.02,0.05738451]
[1741556487237,0.05843943,128.05,128.02,0.05738451]
[1741556489129,7.811,128.04,128.02,0.05738451]
[1741556490037,0.05843943,128.05,128.02,0.05738451]
[1741556490237,7.8112,128.03,128.02,0.05738451]
[1741556490832,7.8109,128.04,128.02,0.05738451]
[1741556497250,7.8111,128.04,128.02,0.05738451]
[1741556497453,0.05843943,128.05,128.02,0.05738451]
[1741556497852,7.811,128.04,128.02,0.05738451]
[1741556498949,0.05843943,128.05,128.02,7.86878451]
[1741556499156,0.05843943,128.05,128.02,0.05738451]
[1741556499357,0.05843943,128.05,128.02,31.03738451]
[1741556499557,0.05843943,128.05,128.04,7.8106]
[1741556508351,0.05843943,128.05,128.04,27.56105414]
[1741556509257,192.0,128.12,128.04,19.75045414]
[1741556509560,199.8062,128.12,128.06,19.75045414]
[1741556509763,199.8062,128.12,128.08,7.8078]
[1741556510161,192.0,128.12,128.09,7.8074]
[1741556510355,0.05609043,128.11,128.09,7.86042122]
[1741556511058,0.05609043,128.11,128.09,0.05302122]
[1741556511265,0.05609043,128.11,128.1,7.807]
[1741556511865,192.0,128.18,128.1,50.73045414]
[1741556512065,192.0,128.18,128.13,19.75045414]
[1741556512560,192.0,128.18,128.15,19.75045414]
[1741556512771,10.68678477,128.2,128.15,19.75045414]
[1741556512961,10.68678477,128.2,128.15,19.80178535]
[1741556513264,18.48798477,128.2,128.15,27.60558535]
[1741556513464,10.68678477,128.2,128.17,19.75045414]
[1741556513763,115.91024279,128.21,128.17,19.75045414]
[1741556513764,7.8005,128.21,128.17,19.75045414]
[1741556514064,7.8005,128.21,128.18,0.05201142]
[1741556514873,7.8015,128.19,128.18,0.05201142]
[1741556519664,7.8048,128.14,128.12,22.19295414]
[1741556519974,33.53,128.18,128.1,19.75045414]
[1741556520169,211.75045414,128.17,128.08,19.75045414]
[1741556520370,192.0,128.16,128.07,30.96]
[1741556520675,192.0,128.15,128.07,30.96]
[1741556520967,19.75045414,128.11,128.1,1.406e-05]
[1741556521172,19.75045414,128.11,128.01,167.00060646]
[1741556521173,192.0,128.1,128.01,167.00060646]
[1741556521376,7.8113,128.03,128.01,167.00060646]
[1741556521771,222.94,128.09,128.01,167.00060646]
[1741556521772,2.6921,128.08,128.01,167.00060646]
[1741556521969,7.8115,128.03,128.0,19.75045414]
[1741556522374,7.8115,128.03,128.0,0.05678002]
[1741556522876,0.05373383,128.05,128.0,0.05678002]
[1741556523175,31.01373383,128.05,128.0,0.05678002]